[Event "Early-Titled-Tuesday-Blitz-February-13-2024"]
[Site "Chess.com"]
[Date "2024.02.13"]
[Round "2"]
[White "DAVIDHDZSTS"]
[Black "fabianvivasz"]
[Result "1-0"]
[WhiteElo "1894"]
[BlackElo "2395"]
[TimeControl "180+1"]
[EndTime "8:17:53 PST"]
[Termination "DAVIDHDZSTS won by resignation"]

1. d4 {[%clk 0:02:58.5]} 1... d5 {[%clk 0:02:58.7]} 2. Nc3 {[%clk 0:02:58.8]}
2... Nf6 {[%clk 0:02:55.4]} 3. Bf4 {[%clk 0:02:59.1]} 3... e6 {[%clk 0:02:52.5]}
4. Nb5 {[%clk 0:02:58.6]} 4... Na6 {[%clk 0:02:51.7]} 5. e3 {[%clk 0:02:58.5]}
5... c6 {[%clk 0:02:26.7]} 6. Nc3 {[%clk 0:02:57.5]} 6... Bb4 {[%clk 0:02:14.1]}
7. Bxa6 {[%clk 0:02:54]} 7... bxa6 {[%clk 0:02:15]} 8. Nf3 {[%clk 0:02:46.6]}
8... Ne4 {[%clk 0:02:11.2]} 9. O-O {[%clk 0:02:43.6]} 9... Nxc3 {[%clk
0:01:59.6]} 10. bxc3 {[%clk 0:02:44.5]} 10... Bxc3 {[%clk 0:02:00.1]} 11. Rb1
{[%clk 0:02:42.3]} 11... O-O {[%clk 0:01:50.5]} 12. Ne5 {[%clk 0:02:38.8]} 12...
Qe8 {[%clk 0:01:34]} 13. Rb3 {[%clk 0:02:27.9]} 13... Ba5 {[%clk 0:01:31.4]} 14.
Qg4 {[%clk 0:02:20.8]} 14... f6 {[%clk 0:01:28.2]} 15. Bh6 {[%clk 0:02:17.1]}
15... g6 {[%clk 0:00:56.7]} 16. Bxf8 {[%clk 0:02:16.1]} 16... Kxf8 {[%clk
0:00:52.6]} 17. Qf4 {[%clk 0:02:11.3]} 17... Kg7 {[%clk 0:00:47.6]} 18. Ng4
{[%clk 0:02:06.5]} 18... Qe7 {[%clk 0:00:45.4]} 19. Qh6+ {[%clk 0:02:04]} 19...
Kg8 {[%clk 0:00:45.3]} 20. Qf4 {[%clk 0:01:59.9]} 20... Kg7 {[%clk 0:00:41.8]}
21. e4 {[%clk 0:01:56]} 21... Bc7 {[%clk 0:00:36.5]} 22. e5 {[%clk 0:01:51.8]}
22... fxe5 {[%clk 0:00:26.5]} 23. Qh6+ {[%clk 0:01:47.3]} 23... Kg8 {[%clk
0:00:22.7]} 24. dxe5 {[%clk 0:01:43.2]} 24... Qg7 {[%clk 0:00:21.2]} 25. Nf6+
{[%clk 0:01:39.9]} 25... Kh8 {[%clk 0:00:15.6]} 26. Qxg7+ {[%clk 0:01:37.4]}
26... Kxg7 {[%clk 0:00:16.1]} 27. Ne8+ {[%clk 0:01:37.6]} 1-0

[Event "Early-Titled-Tuesday-Blitz-February-13-2024"]
[Site "Chess.com"]
[Date "2024.02.13"]
[Round "2"]
[White "MrChessSponge"]
[Black "Louis-Paulsen-Fan"]
[Result "1-0"]
[WhiteElo "2521"]
[BlackElo "2275"]
[TimeControl "180+1"]
[EndTime "8:17:58 PST"]
[Termination "MrChessSponge won by resignation"]

1. e4 {[%clk 0:02:59.3]} 1... Nf6 {[%clk 0:02:59.6]} 2. e5 {[%clk 0:02:58.5]}
2... Nd5 {[%clk 0:02:59.9]} 3. d4 {[%clk 0:02:58.7]} 3... d6 {[%clk 0:03:00]} 4.
Nf3 {[%clk 0:02:59]} 4... g6 {[%clk 0:02:59.8]} 5. c4 {[%clk 0:02:58]} 5... Nb6
{[%clk 0:03:00]} 6. exd6 {[%clk 0:02:57.6]} 6... cxd6 {[%clk 0:02:59.9]} 7. Be3
{[%clk 0:02:57.5]} 7... Bg7 {[%clk 0:02:59.9]} 8. h3 {[%clk 0:02:54.7]} 8... O-O
{[%clk 0:02:59.7]} 9. Nc3 {[%clk 0:02:53.8]} 9... Bf5 {[%clk 0:02:53.2]} 10. Rc1
{[%clk 0:02:52.8]} 10... d5 {[%clk 0:02:47.8]} 11. c5 {[%clk 0:02:50.6]} 11...
Nc4 {[%clk 0:02:48]} 12. Bxc4 {[%clk 0:02:50.2]} 12... dxc4 {[%clk 0:02:48.9]}
13. O-O {[%clk 0:02:46.6]} 13... Bd3 {[%clk 0:02:49.1]} 14. Re1 {[%clk
0:02:46.3]} 14... Nc6 {[%clk 0:02:49.2]} 15. d5 {[%clk 0:02:40.1]} 15... Nb4
{[%clk 0:02:45.7]} 16. b3 {[%clk 0:02:23.7]} 16... Nxd5 {[%clk 0:02:31.6]} 17.
Nxd5 {[%clk 0:02:22.8]} 17... Qxd5 {[%clk 0:02:30.8]} 18. bxc4 {[%clk 0:02:23]}
18... Bxc4 {[%clk 0:02:31]} 19. Qc2 {[%clk 0:02:00.9]} 19... Bxa2 {[%clk
0:02:22.9]} 20. Rcd1 {[%clk 0:01:56.5]} 20... Qb3 {[%clk 0:02:06.6]} 21. Qe4
{[%clk 0:01:54.7]} 21... Qe6 {[%clk 0:01:35]} 22. Qxb7 {[%clk 0:01:51.2]} 22...
a5 {[%clk 0:01:32.6]} 23. Bd4 {[%clk 0:01:47.6]} 23... Qb3 {[%clk 0:01:30.1]}
24. Qxe7 {[%clk 0:01:39.6]} 24... Rad8 {[%clk 0:01:16.6]} 25. Bxg7 {[%clk
0:01:37.2]} 25... Qxd1 {[%clk 0:01:08.4]} 26. Bxf8 {[%clk 0:01:20.8]} 1-0

[Event "Early-Titled-Tuesday-Blitz-February-13-2024"]
[Site "Chess.com"]
[Date "2024.02.13"]
[Round "2"]
[White "Som2310"]
[Black "Kotlyar_K"]
[Result "1-0"]
[WhiteElo "2811"]
[BlackElo "2571"]
[TimeControl "180+1"]
[EndTime "8:18:00 PST"]
[Termination "Som2310 won by resignation"]

1. e4 {[%clk 0:03:00.9]} 1... e5 {[%clk 0:02:59.7]} 2. Nf3 {[%clk 0:03:00.8]}
2... Nc6 {[%clk 0:03:00.2]} 3. d4 {[%clk 0:03:01]} 3... exd4 {[%clk 0:03:00.2]}
4. Nxd4 {[%clk 0:03:01.6]} 4... Nf6 {[%clk 0:03:00.5]} 5. Nxc6 {[%clk
0:03:01.7]} 5... bxc6 {[%clk 0:03:00.5]} 6. e5 {[%clk 0:03:02.3]} 6... Qe7
{[%clk 0:03:00.7]} 7. Qe2 {[%clk 0:03:02.8]} 7... Nd5 {[%clk 0:03:01.3]} 8. Nd2
{[%clk 0:03:03.1]} 8... g6 {[%clk 0:02:52.9]} 9. Nf3 {[%clk 0:03:02.9]} 9... Bg7
{[%clk 0:02:50.6]} 10. c4 {[%clk 0:03:02.8]} 10... Ba6 {[%clk 0:02:50.2]} 11.
Bg5 {[%clk 0:03:02.7]} 11... Qb4+ {[%clk 0:02:37]} 12. Qd2 {[%clk 0:03:02.4]}
12... Qxd2+ {[%clk 0:02:34.8]} 13. Kxd2 {[%clk 0:03:02.6]} 13... Nb6 {[%clk
0:02:31.2]} 14. b3 {[%clk 0:03:00.4]} 14... O-O {[%clk 0:02:23.1]} 15. Bd3
{[%clk 0:02:53.5]} 15... Rfe8 {[%clk 0:02:23.2]} 16. Rae1 {[%clk 0:02:51.5]}
16... h6 {[%clk 0:02:10.5]} 17. Bf4 {[%clk 0:02:43.6]} 17... g5 {[%clk
0:01:46.4]} 18. Bg3 {[%clk 0:02:42.3]} 18... Bf8 {[%clk 0:01:47]} 19. Kc2 {[%clk
0:02:35.9]} 19... d5 {[%clk 0:01:46.2]} 20. exd6 {[%clk 0:02:29.6]} 20... cxd6
{[%clk 0:01:45.5]} 21. h4 {[%clk 0:02:26]} 21... g4 {[%clk 0:01:41]} 22. Nd4
{[%clk 0:02:05.8]} 22... d5 {[%clk 0:01:27.8]} 23. cxd5 {[%clk 0:01:59]} 23...
Bxd3+ {[%clk 0:01:27.2]} 24. Kxd3 {[%clk 0:01:59.2]} 24... cxd5 {[%clk
0:01:24.1]} 25. Rxe8 {[%clk 0:01:44.2]} 25... Rxe8 {[%clk 0:01:25]} 26. Rc1
{[%clk 0:01:44.5]} 26... Bg7 {[%clk 0:01:02.5]} 27. Nf5 {[%clk 0:01:40.9]} 27...
Nd7 {[%clk 0:00:51.6]} 28. Rc7 {[%clk 0:01:40.1]} 28... Nc5+ {[%clk 0:00:52]}
29. Rxc5 {[%clk 0:01:39.7]} 29... Re1 {[%clk 0:00:38.7]} 30. Nxg7 {[%clk
0:01:38.5]} 30... Kxg7 {[%clk 0:00:38.6]} 31. Rxd5 {[%clk 0:01:38.7]} 31... Ra1
{[%clk 0:00:38]} 32. Ra5 {[%clk 0:01:38.1]} 32... Rd1+ {[%clk 0:00:36.9]} 33.
Ke2 {[%clk 0:01:37.7]} 33... Rd7 {[%clk 0:00:37.8]} 34. Bf4 {[%clk 0:01:36.7]}
34... Kg6 {[%clk 0:00:38.7]} 35. h5+ {[%clk 0:01:36.6]} 35... Kg7 {[%clk
0:00:38.1]} 36. Ra6 {[%clk 0:01:36.4]} 36... f6 {[%clk 0:00:38.5]} 37. Be3
{[%clk 0:01:36.7]} 37... f5 {[%clk 0:00:36.7]} 38. Rxa7 {[%clk 0:01:36.9]} 1-0

[Event "Early-Titled-Tuesday-Blitz-February-13-2024"]
[Site "Chess.com"]
[Date "2024.02.13"]
[Round "2"]
[White "mbojan"]
[Black "profedechess93"]
[Result "0-1"]
[WhiteElo "2866"]
[BlackElo "2619"]
[TimeControl "180+1"]
[EndTime "8:18:06 PST"]
[Termination "profedechess93 won by checkmate"]

1. d4 {[%clk 0:03:00.9]} 1... d5 {[%clk 0:02:59.6]} 2. c4 {[%clk 0:03:00.4]}
2... c6 {[%clk 0:02:59.4]} 3. Nf3 {[%clk 0:02:59.6]} 3... Nf6 {[%clk 0:02:59.6]}
4. e3 {[%clk 0:03:00.2]} 4... e6 {[%clk 0:02:59.6]} 5. Nc3 {[%clk 0:02:56.4]}
5... Nbd7 {[%clk 0:03:00.1]} 6. Qc2 {[%clk 0:02:56.2]} 6... Bd6 {[%clk
0:02:59.7]} 7. b3 {[%clk 0:02:55.5]} 7... Qe7 {[%clk 0:02:58.6]} 8. Bd3 {[%clk
0:02:55.1]} 8... O-O {[%clk 0:02:57.9]} 9. O-O {[%clk 0:02:55.5]} 9... dxc4
{[%clk 0:02:58.1]} 10. bxc4 {[%clk 0:02:55]} 10... e5 {[%clk 0:02:59]} 11. Bb2
{[%clk 0:02:52.5]} 11... Re8 {[%clk 0:02:57.5]} 12. dxe5 {[%clk 0:02:28.3]}
12... Nxe5 {[%clk 0:02:56.5]} 13. Nxe5 {[%clk 0:02:28.4]} 13... Qxe5 {[%clk
0:02:56.6]} 14. g3 {[%clk 0:02:28]} 14... Qh5 {[%clk 0:02:48.2]} 15. Ne4 {[%clk
0:02:25.9]} 15... Ng4 {[%clk 0:02:01.9]} 16. h4 {[%clk 0:02:24.5]} 16... Bc7
{[%clk 0:01:38.5]} 17. Rfd1 {[%clk 0:02:20.9]} 17... Ne5 {[%clk 0:01:31]} 18.
Be2 {[%clk 0:01:38.1]} 18... Nf3+ {[%clk 0:01:12.7]} 19. Kg2 {[%clk 0:01:38.1]}
19... Nxh4+ {[%clk 0:01:12.6]} 20. gxh4 {[%clk 0:01:38.6]} 20... Qg6+ {[%clk
0:01:13]} 21. Kf1 {[%clk 0:01:20.2]} 21... Bh3+ {[%clk 0:01:12.6]} 22. Ke1
{[%clk 0:01:20.8]} 22... Ba5+ {[%clk 0:00:58.1]} 23. Bc3 {[%clk 0:01:18.2]}
23... Bxc3+ {[%clk 0:00:57.9]} 24. Qxc3 {[%clk 0:01:17.1]} 24... Qxe4 {[%clk
0:00:58]} 25. Rd4 {[%clk 0:01:14.4]} 25... Qg2 {[%clk 0:00:43.4]} 26. Rf4 {[%clk
0:00:58.8]} 26... Rad8 {[%clk 0:00:39.6]} 27. Bf3 {[%clk 0:00:59.5]} 27... Qf1#
{[%clk 0:00:36]} 0-1

[Event "Early-Titled-Tuesday-Blitz-February-13-2024"]
[Site "Chess.com"]
[Date "2024.02.13"]
[Round "2"]
[White "kpio91"]
[Black "vishwa_vijeta"]
[Result "1-0"]
[WhiteElo "2905"]
[BlackElo "2612"]
[TimeControl "180+1"]
[EndTime "8:18:08 PST"]
[Termination "kpio91 won by resignation"]

1. e4 {[%clk 0:03:00.9]} 1... c5 {[%clk 0:02:55.7]} 2. Nc3 {[%clk 0:03:00.3]}
2... g6 {[%clk 0:02:53.2]} 3. f4 {[%clk 0:02:57.1]} 3... Bg7 {[%clk 0:02:52.9]}
4. g3 {[%clk 0:02:56.4]} 4... Nc6 {[%clk 0:02:52.8]} 5. Bg2 {[%clk 0:02:56.4]}
5... d6 {[%clk 0:02:51]} 6. d3 {[%clk 0:02:56.4]} 6... e6 {[%clk 0:02:50.7]} 7.
Nh3 {[%clk 0:02:56]} 7... Nge7 {[%clk 0:02:50.5]} 8. O-O {[%clk 0:02:55.7]} 8...
O-O {[%clk 0:02:51.2]} 9. Be3 {[%clk 0:02:52.3]} 9... Rb8 {[%clk 0:02:49.1]} 10.
Qd2 {[%clk 0:02:50]} 10... Nd4 {[%clk 0:02:46.6]} 11. Kh1 {[%clk 0:02:31.8]}
11... b5 {[%clk 0:02:44.9]} 12. a3 {[%clk 0:02:30.2]} 12... a5 {[%clk
0:02:43.9]} 13. Nd1 {[%clk 0:02:07.4]} 13... e5 {[%clk 0:02:34.9]} 14. Ndf2
{[%clk 0:02:00.1]} 14... exf4 {[%clk 0:02:29.4]} 15. Nxf4 {[%clk 0:01:57.3]}
15... Nec6 {[%clk 0:02:29.7]} 16. Nd5 {[%clk 0:01:56.8]} 16... Be6 {[%clk
0:02:29.1]} 17. Rae1 {[%clk 0:01:50.4]} 17... b4 {[%clk 0:02:27.7]} 18. c3
{[%clk 0:01:35.7]} 18... Nb5 {[%clk 0:02:19.3]} 19. a4 {[%clk 0:01:34]} 19...
bxc3 {[%clk 0:02:10.3]} 20. bxc3 {[%clk 0:01:32.7]} 20... Nc7 {[%clk 0:02:06.3]}
21. Bg5 {[%clk 0:01:26.9]} 21... f6 {[%clk 0:02:03.5]} 22. Bh6 {[%clk 0:01:20]}
22... f5 {[%clk 0:02:01.2]} 23. Bxg7 {[%clk 0:01:16.6]} 23... Kxg7 {[%clk
0:01:56.7]} 24. Nf4 {[%clk 0:01:16.7]} 24... Bd7 {[%clk 0:01:54.7]} 25. exf5
{[%clk 0:01:15.3]} 25... Rxf5 {[%clk 0:01:55.6]} 26. Ne4 {[%clk 0:01:08]} 26...
Qf8 {[%clk 0:01:53.9]} 27. Bh3 {[%clk 0:01:05.5]} 27... Ne5 {[%clk 0:01:44.5]}
28. Bxf5 {[%clk 0:01:02.6]} 28... Bxf5 {[%clk 0:01:45.4]} 29. d4 {[%clk
0:00:56.9]} 29... Nc4 {[%clk 0:01:39.2]} 30. Qe2 {[%clk 0:00:54.4]} 30... d5
{[%clk 0:01:20.2]} 31. Nxc5 {[%clk 0:00:50.7]} 31... Re8 {[%clk 0:01:19.8]} 32.
Qxe8 {[%clk 0:00:41.1]} 32... Nxe8 {[%clk 0:01:15.3]} 33. Nfe6+ {[%clk 0:00:41]}
33... Kg8 {[%clk 0:01:16.2]} 34. Nxf8 {[%clk 0:00:41.2]} 34... Kxf8 {[%clk
0:01:17.1]} 1-0

[Event "Early-Titled-Tuesday-Blitz-February-13-2024"]
[Site "Chess.com"]
[Date "2024.02.13"]
[Round "2"]
[White "RaugintaBulba"]
[Black "Leonid_Starozhilov"]
[Result "0-1"]
[WhiteElo "2422"]
[BlackElo "2740"]
[TimeControl "180+1"]
[EndTime "8:18:16 PST"]
[Termination "Leonid_Starozhilov won on time"]

1. b3 {[%clk 0:01:25.2]} 1... d5 {[%clk 0:02:58.7]} 2. Bb2 {[%clk 0:01:26.1]}
2... Bg4 {[%clk 0:02:59.2]} 3. h3 {[%clk 0:01:21.3]} 3... Bh5 {[%clk 0:02:59]}
4. g4 {[%clk 0:01:21.2]} 4... Bg6 {[%clk 0:02:59.4]} 5. e3 {[%clk 0:01:20.3]}
5... Nd7 {[%clk 0:02:57.1]} 6. d3 {[%clk 0:01:20.5]} 6... e5 {[%clk 0:02:56.6]}
7. Nd2 {[%clk 0:01:21.1]} 7... c6 {[%clk 0:02:56.8]} 8. Be2 {[%clk 0:01:21.5]}
8... Bd6 {[%clk 0:02:49.8]} 9. Ngf3 {[%clk 0:01:17.4]} 9... Ne7 {[%clk 0:02:41]}
10. h4 {[%clk 0:01:02.7]} 10... h5 {[%clk 0:02:37.7]} 11. Ng5 {[%clk 0:01:01.6]}
11... hxg4 {[%clk 0:02:32.5]} 12. Bxg4 {[%clk 0:01:02.5]} 12... Nf6 {[%clk
0:02:31.8]} 13. Be2 {[%clk 0:00:44.9]} 13... Bh5 {[%clk 0:02:25]} 14. Bxh5
{[%clk 0:00:42.8]} 14... Rxh5 {[%clk 0:02:14.2]} 15. Ndf3 {[%clk 0:00:41.3]}
15... Qc7 {[%clk 0:02:08.8]} 16. d4 {[%clk 0:00:34.1]} 16... Ng6 {[%clk
0:02:03.6]} 17. Rg1 {[%clk 0:00:19.6]} 17... e4 {[%clk 0:01:52]} 18. Nxf7 {[%clk
0:00:09.7]} 18... Kxf7 {[%clk 0:01:42.2]} 19. Ng5+ {[%clk 0:00:09.9]} 19... Kg8
{[%clk 0:01:31]} 20. c4 {[%clk 0:00:03.9]} 20... Bb4+ {[%clk 0:01:10.1]} 21. Kf1
{[%clk 0:00:02.2]} 21... Qh2 {[%clk 0:01:10.3]} 0-1

[Event "Early-Titled-Tuesday-Blitz-February-13-2024"]
[Site "Chess.com"]
[Date "2024.02.13"]
[Round "2"]
[White "Ron_Weasley_Chess"]
[Black "Brave_spirit12"]
[Result "1-0"]
[WhiteElo "2439"]
[BlackElo "2745"]
[TimeControl "180+1"]
[EndTime "8:18:17 PST"]
[Termination "Ron_Weasley_Chess won by resignation"]

1. Nf3 {[%clk 0:03:00.9]} 1... d5 {[%clk 0:02:59.8]} 2. g3 {[%clk 0:02:58.7]}
2... c6 {[%clk 0:03:00.2]} 3. Bg2 {[%clk 0:02:58]} 3... h5 {[%clk 0:03:00.5]} 4.
h3 {[%clk 0:02:49.1]} 4... g6 {[%clk 0:03:00.2]} 5. d3 {[%clk 0:02:48.4]} 5...
Bg7 {[%clk 0:02:59.4]} 6. O-O {[%clk 0:02:41.2]} 6... Nf6 {[%clk 0:02:59.2]} 7.
Nbd2 {[%clk 0:02:31.6]} 7... O-O {[%clk 0:02:58.8]} 8. e4 {[%clk 0:02:31.8]}
8... Qc7 {[%clk 0:02:58.6]} 9. e5 {[%clk 0:02:20.3]} 9... Nfd7 {[%clk
0:02:58.2]} 10. d4 {[%clk 0:02:14.7]} 10... e6 {[%clk 0:02:58.2]} 11. Re1 {[%clk
0:02:12.2]} 11... c5 {[%clk 0:02:58.6]} 12. c3 {[%clk 0:01:52.4]} 12... Nc6
{[%clk 0:02:58.8]} 13. Nf1 {[%clk 0:01:49.7]} 13... Qb6 {[%clk 0:02:58.7]} 14.
dxc5 {[%clk 0:01:42.6]} 14... Nxc5 {[%clk 0:02:58.3]} 15. Be3 {[%clk 0:01:40.8]}
15... a5 {[%clk 0:02:49.6]} 16. Nd4 {[%clk 0:01:23.5]} 16... Qa6 {[%clk
0:02:26]} 17. Nxc6 {[%clk 0:01:15.1]} 17... Qxc6 {[%clk 0:02:26.9]} 18. f4
{[%clk 0:01:15.3]} 18... Bd7 {[%clk 0:02:24]} 19. c4 {[%clk 0:01:13.9]} 19...
Ne4 {[%clk 0:02:07.9]} 20. Rc1 {[%clk 0:01:13.8]} 20... Qa6 {[%clk 0:02:01.5]}
21. cxd5 {[%clk 0:01:03.8]} 21... exd5 {[%clk 0:02:01.8]} 22. Qxd5 {[%clk
0:01:03.9]} 22... Bc6 {[%clk 0:02:01.9]} 23. Rxc6 {[%clk 0:01:03.8]} 23... bxc6
{[%clk 0:01:58.9]} 24. Qxe4 {[%clk 0:01:03.8]} 24... Rab8 {[%clk 0:01:59.5]} 25.
b3 {[%clk 0:00:55.1]} 25... a4 {[%clk 0:01:59.6]} 26. Qxa4 {[%clk 0:00:52.5]}
26... Qd3 {[%clk 0:01:59.5]} 27. Qc4 {[%clk 0:00:47.8]} 27... Qd7 {[%clk
0:01:58.2]} 28. Qxc6 {[%clk 0:00:47.6]} 28... Qf5 {[%clk 0:01:58.2]} 29. Qe4
{[%clk 0:00:41.8]} 29... Qe6 {[%clk 0:01:57.6]} 30. Rd1 {[%clk 0:00:41]} 30...
Rfd8 {[%clk 0:01:57.6]} 31. Rd5 {[%clk 0:00:37]} 31... Qa6 {[%clk 0:01:56.6]}
32. Qc2 {[%clk 0:00:31.8]} 32... Rdc8 {[%clk 0:01:56]} 33. Rc5 {[%clk
0:00:30.9]} 33... Rd8 {[%clk 0:01:55.9]} 34. Bd5 {[%clk 0:00:30.8]} 34... Bf8
{[%clk 0:01:54.5]} 35. Rc6 {[%clk 0:00:29.9]} 35... Qa5 {[%clk 0:01:44.7]} 36.
Qxg6+ {[%clk 0:00:28.7]} 36... Bg7 {[%clk 0:01:23.6]} 37. Qxf7+ {[%clk
0:00:27.9]} 37... Kh8 {[%clk 0:01:22.6]} 38. Qxh5+ {[%clk 0:00:28.8]} 1-0

[Event "Early-Titled-Tuesday-Blitz-February-13-2024"]
[Site "Chess.com"]
[Date "2024.02.13"]
[Round "2"]
[White "blank0923"]
[Black "GMKrikor"]
[Result "0-1"]
[WhiteElo "2604"]
[BlackElo "2883"]
[TimeControl "180+1"]
[EndTime "8:18:18 PST"]
[Termination "GMKrikor won on time"]

1. d4 {[%clk 0:03:00.9]} 1... Nf6 {[%clk 0:02:58.7]} 2. Nf3 {[%clk 0:03:01.8]}
2... g6 {[%clk 0:02:58.3]} 3. Nc3 {[%clk 0:03:02]} 3... d5 {[%clk 0:02:56.3]} 4.
Bf4 {[%clk 0:03:02.6]} 4... Bg7 {[%clk 0:02:43.9]} 5. e3 {[%clk 0:03:02.2]} 5...
Bg4 {[%clk 0:02:42.3]} 6. Nb5 {[%clk 0:02:48.4]} 6... Na6 {[%clk 0:02:39.1]} 7.
c4 {[%clk 0:02:43.1]} 7... c6 {[%clk 0:02:21.7]} 8. Nc3 {[%clk 0:02:38.7]} 8...
Qa5 {[%clk 0:02:21.9]} 9. Qb3 {[%clk 0:01:52.3]} 9... O-O {[%clk 0:02:15.6]} 10.
Ne5 {[%clk 0:01:50]} 10... Be6 {[%clk 0:01:48.3]} 11. h3 {[%clk 0:01:24]} 11...
c5 {[%clk 0:01:32.2]} 12. Qb5 {[%clk 0:00:39.1]} 12... Qxb5 {[%clk 0:01:29.9]}
13. cxb5 {[%clk 0:00:40]} 13... Nb4 {[%clk 0:01:30.4]} 14. O-O-O {[%clk
0:00:39.8]} 14... cxd4 {[%clk 0:01:27.1]} 15. exd4 {[%clk 0:00:24.9]} 15... Rac8
{[%clk 0:01:09.7]} 16. Kd2 {[%clk 0:00:04.7]} 16... Ne4+ {[%clk 0:01:09.6]} 17.
Nxe4 {[%clk 0:00:05.1]} 17... dxe4 {[%clk 0:01:10.5]} 18. a3 {[%clk 0:00:03.7]}
18... Rc2+ {[%clk 0:01:07]} 19. Ke1 {[%clk 0:00:01.6]} 19... Nd5 {[%clk
0:01:05.2]} 20. Bc1 {[%clk 0:00:01.5]} 20... Rfc8 {[%clk 0:01:04.3]} 21. Be2
{[%clk 0:00:01.4]} 21... Rxc1 {[%clk 0:01:04.3]} 0-1

[Event "Early-Titled-Tuesday-Blitz-February-13-2024"]
[Site "Chess.com"]
[Date "2024.02.13"]
[Round "2"]
[White "faraone99"]
[Black "jacky72"]
[Result "0-1"]
[WhiteElo "2534"]
[BlackElo "2773"]
[TimeControl "180+1"]
[EndTime "8:18:19 PST"]
[Termination "jacky72 won by resignation"]

1. e4 {[%clk 0:03:00.9]} 1... e5 {[%clk 0:02:59.8]} 2. Nf3 {[%clk 0:03:00.6]}
2... Nc6 {[%clk 0:03:00]} 3. Bb5 {[%clk 0:03:00.7]} 3... a6 {[%clk 0:02:59.8]}
4. Ba4 {[%clk 0:03:00.6]} 4... Nf6 {[%clk 0:03:00.5]} 5. O-O {[%clk 0:02:59.9]}
5... Be7 {[%clk 0:02:59.8]} 6. Re1 {[%clk 0:02:59.2]} 6... b5 {[%clk 0:03:00.4]}
7. Bb3 {[%clk 0:02:59.1]} 7... d6 {[%clk 0:03:00.1]} 8. c3 {[%clk 0:02:57.7]}
8... O-O {[%clk 0:03:00.3]} 9. h3 {[%clk 0:02:56.7]} 9... Na5 {[%clk 0:02:52.6]}
10. Bc2 {[%clk 0:02:56.6]} 10... c5 {[%clk 0:02:53.3]} 11. d4 {[%clk 0:02:56]}
11... Qc7 {[%clk 0:02:54]} 12. d5 {[%clk 0:02:48]} 12... Ne8 {[%clk 0:02:52.6]}
13. a4 {[%clk 0:02:37.2]} 13... b4 {[%clk 0:02:48.7]} 14. Nbd2 {[%clk
0:02:31.6]} 14... g6 {[%clk 0:02:47]} 15. cxb4 {[%clk 0:02:28.9]} 15... cxb4
{[%clk 0:02:47]} 16. Bd3 {[%clk 0:02:25.8]} 16... f5 {[%clk 0:02:43.7]} 17. Qe2
{[%clk 0:02:19.1]} 17... f4 {[%clk 0:02:42.1]} 18. Nc4 {[%clk 0:02:17.2]} 18...
Nb3 {[%clk 0:02:37.1]} 19. Rb1 {[%clk 0:02:14.4]} 19... g5 {[%clk 0:02:37.7]}
20. Nh2 {[%clk 0:02:12.5]} 20... Nd4 {[%clk 0:02:31.1]} 21. Qd1 {[%clk
0:02:08.9]} 21... Ng7 {[%clk 0:02:31.6]} 22. Bd2 {[%clk 0:02:07.3]} 22... a5
{[%clk 0:02:25.4]} 23. Rc1 {[%clk 0:02:06.4]} 23... Qd8 {[%clk 0:02:25]} 24. Nf3
{[%clk 0:01:57.5]} 24... Nxf3+ {[%clk 0:02:21.9]} 25. Qxf3 {[%clk 0:01:58.4]}
25... h5 {[%clk 0:02:22.6]} 26. Be2 {[%clk 0:01:43]} 26... g4 {[%clk 0:02:21.6]}
27. hxg4 {[%clk 0:01:43.2]} 27... hxg4 {[%clk 0:02:22.5]} 28. Qb3 {[%clk
0:01:43]} 28... Bg5 {[%clk 0:02:13]} 29. g3 {[%clk 0:01:13.9]} 29... Nh5 {[%clk
0:02:06.5]} 30. Bf1 {[%clk 0:00:47.9]} 30... Ra7 {[%clk 0:01:53.2]} 31. Bg2
{[%clk 0:00:31]} 31... Raf7 {[%clk 0:01:53.2]} 32. Nxa5 {[%clk 0:00:27.1]} 32...
Qxa5 {[%clk 0:01:51.7]} 33. Bxb4 {[%clk 0:00:27.2]} 33... Qd8 {[%clk 0:01:40.9]}
34. Rc6 {[%clk 0:00:26]} 34... fxg3 {[%clk 0:01:40.4]} 35. fxg3 {[%clk 0:00:26]}
35... Be7 {[%clk 0:01:31.9]} 36. Qd1 {[%clk 0:00:20.4]} 36... Bd7 {[%clk
0:01:31.1]} 37. Rc2 {[%clk 0:00:12.6]} 37... Qb6+ {[%clk 0:01:31.2]} 0-1

[Event "Early-Titled-Tuesday-Blitz-February-13-2024"]
[Site "Chess.com"]
[Date "2024.02.13"]
[Round "2"]
[White "TanitoluwaAps116"]
[Black "2346PL"]
[Result "1-0"]
[WhiteElo "2792"]
[BlackElo "2559"]
[TimeControl "180+1"]
[EndTime "8:18:20 PST"]
[Termination "TanitoluwaAps116 won by resignation"]

1. e4 {[%clk 0:03:00.9]} 1... c5 {[%clk 0:02:59.9]} 2. Nf3 {[%clk 0:03:01.1]}
2... Nf6 {[%clk 0:03:00.1]} 3. Nc3 {[%clk 0:02:59.2]} 3... Nc6 {[%clk
0:02:59.4]} 4. Bb5 {[%clk 0:02:59]} 4... Nd4 {[%clk 0:02:58.9]} 5. Bc4 {[%clk
0:02:57.6]} 5... d6 {[%clk 0:02:58.3]} 6. e5 {[%clk 0:02:22]} 6... Nxf3+ {[%clk
0:02:52.2]} 7. Qxf3 {[%clk 0:02:22.9]} 7... dxe5 {[%clk 0:02:52.5]} 8. d3 {[%clk
0:02:22.9]} 8... a6 {[%clk 0:02:49.5]} 9. Be3 {[%clk 0:02:18.7]} 9... b5 {[%clk
0:02:46]} 10. Qxa8 {[%clk 0:02:08.4]} 10... bxc4 {[%clk 0:02:44.2]} 11. dxc4
{[%clk 0:02:09.3]} 11... e6 {[%clk 0:02:34.7]} 12. Rd1 {[%clk 0:02:06.1]} 12...
Qc7 {[%clk 0:02:33.7]} 13. Na4 {[%clk 0:01:56.2]} 13... Be7 {[%clk 0:02:30.4]}
14. Nb6 {[%clk 0:01:44.5]} 14... O-O {[%clk 0:02:27.2]} 15. Nxc8 {[%clk
0:01:43.6]} 15... Rxc8 {[%clk 0:02:28.1]} 16. Qf3 {[%clk 0:01:38.5]} 16... e4
{[%clk 0:02:25.9]} 17. Qe2 {[%clk 0:01:25.2]} 17... Qa5+ {[%clk 0:02:20.5]} 18.
Bd2 {[%clk 0:01:23.6]} 18... Qxa2 {[%clk 0:02:14.1]} 19. Bc3 {[%clk 0:01:23.5]}
19... Qa4 {[%clk 0:02:13.2]} 20. b3 {[%clk 0:01:21]} 20... Qc6 {[%clk 0:02:13]}
21. O-O {[%clk 0:01:20.6]} 21... h5 {[%clk 0:02:12.1]} 22. h3 {[%clk 0:01:18.5]}
22... h4 {[%clk 0:01:53.7]} 23. Rfe1 {[%clk 0:01:17.3]} 23... Qc7 {[%clk
0:01:46]} 24. Ra1 {[%clk 0:01:13.9]} 24... Ra8 {[%clk 0:01:42.2]} 25. Bxf6
{[%clk 0:01:01.8]} 25... Bxf6 {[%clk 0:01:42]} 26. Qxe4 {[%clk 0:01:02.4]} 26...
Rd8 {[%clk 0:01:35.1]} 27. Rxa6 {[%clk 0:00:57.8]} 27... g6 {[%clk 0:01:35.5]}
28. Qf3 {[%clk 0:00:49.9]} 28... Kg7 {[%clk 0:01:35.2]} 29. Rd1 {[%clk
0:00:41.9]} 29... Rxd1+ {[%clk 0:01:31.4]} 30. Qxd1 {[%clk 0:00:42.8]} 30... Qf4
{[%clk 0:01:31.6]} 31. Ra7 {[%clk 0:00:38.2]} 31... Be5 {[%clk 0:01:31.1]} 32.
Kf1 {[%clk 0:00:36.9]} 32... Qh2 {[%clk 0:01:29.7]} 33. Qf3 {[%clk 0:00:34.4]}
33... Qh1+ {[%clk 0:01:28.7]} 34. Ke2 {[%clk 0:00:34.8]} 34... Bf6 {[%clk
0:01:29]} 35. Qb7 {[%clk 0:00:33.9]} 35... Bc3 {[%clk 0:01:20.3]} 36. Qxf7+
{[%clk 0:00:33.3]} 36... Kh6 {[%clk 0:01:20.6]} 37. Qf4+ {[%clk 0:00:31.1]}
37... g5 {[%clk 0:01:20.9]} 38. Qf8+ {[%clk 0:00:31.2]} 1-0